[Event "*** Titled Tuesday Blitz"]
[Site "Chess.com"]
[Date "2021.04.20"]
[Round "2"]
[White "Rondo_Capriccioso"]
[Black "rugbyclub"]
[Result "0-1"]
[WhiteElo "2431"]
[BlackElo "2235"]
[TimeControl "180+1"]
[EndTime "10:16:47 PDT"]
[Termination "rugbyclub won by resignation"]

1. e4 {[%clk 0:02:55.7]} 1... e5 {[%clk 0:02:57.6]} 2. Nf3 {[%clk 0:02:55.3]}
2... Nc6 {[%clk 0:02:58]} 3. Bc4 {[%clk 0:02:55.7]} 3... Bc5 {[%clk 0:02:56.9]}
4. c3 {[%clk 0:02:55.1]} 4... Nf6 {[%clk 0:02:56.8]} 5. d3 {[%clk 0:02:55.9]}
5... O-O {[%clk 0:02:52.8]} 6. b4 {[%clk 0:02:56.1]} 6... Bb6 {[%clk 0:02:51.6]}
7. O-O {[%clk 0:02:56.7]} 7... d6 {[%clk 0:02:50.8]} 8. Nbd2 {[%clk 0:02:50.5]}
8... Ne7 {[%clk 0:02:44.2]} 9. a4 {[%clk 0:02:49.7]} 9... a6 {[%clk 0:02:38]}
10. Bb3 {[%clk 0:02:44.2]} 10... Ng6 {[%clk 0:02:35.5]} 11. Nc4 {[%clk
0:02:38.7]} 11... Ba7 {[%clk 0:02:35.3]} 12. Be3 {[%clk 0:02:39.3]} 12... c6
{[%clk 0:02:32]} 13. a5 {[%clk 0:02:35.1]} 13... Nh5 {[%clk 0:02:17.3]} 14. Bxa7
{[%clk 0:01:59.4]} 14... Rxa7 {[%clk 0:02:14.3]} 15. Nb6 {[%clk 0:01:59]} 15...
Nhf4 {[%clk 0:01:59.8]} 16. Ne1 {[%clk 0:01:30.2]} 16... Qg5 {[%clk 0:01:44.1]}
17. g3 {[%clk 0:01:22.1]} 17... Bh3 {[%clk 0:01:42.4]} 18. Nf3 {[%clk
0:01:12.8]} 18... Qh5 {[%clk 0:01:27.1]} 19. Re1 {[%clk 0:00:49]} 19... Bg4
{[%clk 0:01:23.8]} 20. Re3 {[%clk 0:00:46.3]} 20... Nh3+ {[%clk 0:00:58.2]} 21.
Kf1 {[%clk 0:00:38.8]} 21... Ng5 {[%clk 0:00:52.8]} 22. Kg2 {[%clk 0:00:27.8]}
22... Nf4+ {[%clk 0:00:38.6]} 23. gxf4 {[%clk 0:00:18.8]} 23... Qh3+ {[%clk
0:00:37.2]} 24. Kg1 {[%clk 0:00:17.8]} 24... Bxf3 {[%clk 0:00:27.9]} 25. Qf1
{[%clk 0:00:08.9]} 25... Qg4+ {[%clk 0:00:25]} 0-1

[Event "*** Titled Tuesday Blitz"]
[Site "Chess.com"]
[Date "2021.04.20"]
[Round "2"]
[White "Vesper2018"]
[Black "Sharpchess22"]
[Result "0-1"]
[WhiteElo "2531"]
[BlackElo "2806"]
[TimeControl "180+1"]
[EndTime "10:16:50 PDT"]
[Termination "Sharpchess22 won on time"]

1. e4 {[%clk 0:03:00.8]} 1... e6 {[%clk 0:02:56.6]} 2. d4 {[%clk 0:02:59.6]}
2... d5 {[%clk 0:02:56.6]} 3. e5 {[%clk 0:02:57.1]} 3... c5 {[%clk 0:02:56.2]}
4. c3 {[%clk 0:02:56.6]} 4... Nc6 {[%clk 0:02:55.7]} 5. Nf3 {[%clk 0:02:57.4]}
5... Bd7 {[%clk 0:02:55.3]} 6. Be2 {[%clk 0:02:56.9]} 6... Nh6 {[%clk
0:02:43.9]} 7. Bxh6 {[%clk 0:02:43.5]} 7... gxh6 {[%clk 0:02:44.8]} 8. O-O
{[%clk 0:02:43.4]} 8... Qb6 {[%clk 0:02:42.6]} 9. Qd2 {[%clk 0:02:34.5]} 9...
Rc8 {[%clk 0:02:38.4]} 10. dxc5 {[%clk 0:02:12.4]} 10... Bxc5 {[%clk 0:02:37.4]}
11. b4 {[%clk 0:02:12.7]} 11... Bf8 {[%clk 0:02:36.5]} 12. a4 {[%clk 0:02:05.7]}
12... Bg7 {[%clk 0:02:30.3]} 13. Bb5 {[%clk 0:01:43]} 13... Nxe5 {[%clk
0:02:19.5]} 14. Nxe5 {[%clk 0:01:41.6]} 14... Bxe5 {[%clk 0:02:20.4]} 15. Bxd7+
{[%clk 0:01:39.3]} 15... Kxd7 {[%clk 0:02:20.5]} 16. Kh1 {[%clk 0:01:31]} 16...
Bg7 {[%clk 0:02:14.9]} 17. f4 {[%clk 0:01:24]} 17... f5 {[%clk 0:02:13.8]} 18.
Rf3 {[%clk 0:01:18.9]} 18... a5 {[%clk 0:02:11.9]} 19. bxa5 {[%clk 0:00:54.6]}
19... Qxa5 {[%clk 0:02:10]} 20. Ra2 {[%clk 0:00:54.6]} 20... Rc4 {[%clk
0:02:07.4]} 21. Rb2 {[%clk 0:00:51.6]} 21... Kc8 {[%clk 0:02:05.9]} 22. h3
{[%clk 0:00:29.7]} 22... Rxa4 {[%clk 0:02:00.3]} 23. Re3 {[%clk 0:00:24.6]}
23... Re8 {[%clk 0:01:55.6]} 24. Qe2 {[%clk 0:00:22.7]} 24... Qa6 {[%clk
0:01:50.2]} 25. Rb5 {[%clk 0:00:19.5]} 25... Rxf4 {[%clk 0:01:38.2]} 26. Nd2
{[%clk 0:00:14.3]} 26... Qc6 {[%clk 0:01:19]} 27. Nb3 {[%clk 0:00:11.9]} 27...
b6 {[%clk 0:01:13.3]} 28. Qa2 {[%clk 0:00:03.9]} 28... Qxb5 {[%clk 0:01:05.5]}
29. Qa8+ {[%clk 0:00:03.4]} 29... Kc7 {[%clk 0:01:00.1]} 30. Qa7+ {[%clk
0:00:02.9]} 30... Kd6 {[%clk 0:00:57.4]} 31. Qxg7 {[%clk 0:00:03.1]} 31... Rf1+
{[%clk 0:00:57.4]} 32. Kh2 {[%clk 0:00:03.2]} 32... Qxb3 {[%clk 0:00:57.5]} 33.
Qe5+ {[%clk 0:00:03.2]} 33... Kd7 {[%clk 0:00:57.7]} 34. Qg7+ {[%clk 0:00:03.4]}
34... Re7 {[%clk 0:00:57.7]} 35. Qg8 {[%clk 0:00:02.3]} 35... Qc4 {[%clk
0:00:54.2]} 36. Qb8 {[%clk 0:00:01.5]} 36... Qf4+ {[%clk 0:00:53.9]} 0-1

[Event "*** Titled Tuesday Blitz"]
[Site "Chess.com"]
[Date "2021.04.20"]
[Round "2"]
[White "Kaua18"]
[Black "esteban062000"]
[Result "1-0"]
[WhiteElo "2415"]
[BlackElo "2168"]
[TimeControl "180+1"]
[EndTime "10:16:50 PDT"]
[Termination "Kaua18 won by resignation"]

1. e4 {[%clk 0:03:00]} 1... c5 {[%clk 0:02:59.8]} 2. Nf3 {[%clk 0:03:00.1]} 2...
g6 {[%clk 0:02:59.7]} 3. d4 {[%clk 0:03:00.1]} 3... cxd4 {[%clk 0:03:00.6]} 4.
Qxd4 {[%clk 0:03:01]} 4... Nf6 {[%clk 0:02:59.7]} 5. Nc3 {[%clk 0:03:01.2]} 5...
Nc6 {[%clk 0:02:59.7]} 6. Qa4 {[%clk 0:03:01.3]} 6... d6 {[%clk 0:02:44]} 7. e5
{[%clk 0:02:55.8]} 7... dxe5 {[%clk 0:02:43.6]} 8. Nxe5 {[%clk 0:02:56.7]} 8...
Bd7 {[%clk 0:02:43.8]} 9. Nxd7 {[%clk 0:02:54.9]} 9... Qxd7 {[%clk 0:02:44.1]}
10. h3 {[%clk 0:02:55.6]} 10... Bg7 {[%clk 0:02:43.9]} 11. Be3 {[%clk 0:02:55]}
11... O-O {[%clk 0:02:41.1]} 12. Be2 {[%clk 0:02:52]} 12... a6 {[%clk
0:02:02.6]} 13. Rd1 {[%clk 0:02:47.9]} 13... Qc7 {[%clk 0:02:00]} 14. O-O {[%clk
0:02:41.8]} 14... Rfd8 {[%clk 0:01:56.9]} 15. Qb3 {[%clk 0:02:28.6]} 15... b5
{[%clk 0:01:46.9]} 16. Bf3 {[%clk 0:02:28.4]} 16... Rxd1 {[%clk 0:01:28.4]} 17.
Rxd1 {[%clk 0:02:27.8]} 17... Rd8 {[%clk 0:01:28.4]} 18. Rxd8+ {[%clk
0:02:07.4]} 18... Nxd8 {[%clk 0:01:21.3]} 19. a4 {[%clk 0:02:07.2]} 19... bxa4
{[%clk 0:01:12.7]} 20. Qxa4 {[%clk 0:02:01.6]} 20... a5 {[%clk 0:01:09.8]} 21.
Nb5 {[%clk 0:01:51.6]} 21... Qe5 {[%clk 0:00:47.8]} 22. Qxa5 {[%clk 0:01:45.6]}
22... Ne6 {[%clk 0:00:44.6]} 23. Qa8+ {[%clk 0:01:39.3]} 23... Nf8 {[%clk
0:00:43.6]} 24. Nc3 {[%clk 0:01:36]} 24... Qc7 {[%clk 0:00:32]} 25. Qb7 {[%clk
0:01:32.1]} 25... Qd8 {[%clk 0:00:27.4]} 26. g4 {[%clk 0:01:26.6]} 26... N6d7
{[%clk 0:00:24.7]} 27. Nd5 {[%clk 0:01:17.2]} 27... Ne5 {[%clk 0:00:24.4]} 28.
Nxe7+ {[%clk 0:01:11.3]} 28... Kh8 {[%clk 0:00:24.2]} 29. Be2 {[%clk 0:01:09.9]}
29... Ne6 {[%clk 0:00:17.1]} 30. Nc6 {[%clk 0:01:08.3]} 30... Nxc6 {[%clk
0:00:15.7]} 31. Qxc6 {[%clk 0:01:09.2]} 31... Nd4 {[%clk 0:00:15.5]} 32. Bxd4
{[%clk 0:01:07.3]} 32... Bxd4 {[%clk 0:00:16.4]} 33. c3 {[%clk 0:01:06.1]} 33...
Ba7 {[%clk 0:00:15.9]} 34. Qb7 {[%clk 0:01:02.6]} 34... Bb8 {[%clk 0:00:16.1]}
35. Bf3 {[%clk 0:00:59.5]} 35... Qd6 {[%clk 0:00:16.1]} 36. Qxf7 {[%clk
0:00:45]} 36... Qh2+ {[%clk 0:00:15.8]} 37. Kf1 {[%clk 0:00:45.4]} 37... Qxh3+
{[%clk 0:00:16]} 38. Ke2 {[%clk 0:00:45.5]} 38... Qh6 {[%clk 0:00:15.1]} 39.
Qe8+ {[%clk 0:00:44.6]} 1-0

[Event "*** Titled Tuesday Blitz"]
[Site "Chess.com"]
[Date "2021.04.20"]
[Round "2"]
[White "vanyakuba"]
[Black "BL4D3RUNN3R"]
[Result "1-0"]
[WhiteElo "2399"]
[BlackElo "2105"]
[TimeControl "180+1"]
[EndTime "10:16:51 PDT"]
[Termination "vanyakuba won by resignation"]

1. e4 {[%clk 0:03:00.9]} 1... c6 {[%clk 0:02:59.1]} 2. d4 {[%clk 0:03:00.7]}
2... d5 {[%clk 0:02:58.9]} 3. exd5 {[%clk 0:03:01.6]} 3... cxd5 {[%clk
0:02:58.4]} 4. c4 {[%clk 0:03:02.3]} 4... Nf6 {[%clk 0:02:57.5]} 5. Nc3 {[%clk
0:03:02.8]} 5... Be6 {[%clk 0:02:56.9]} 6. c5 {[%clk 0:02:59.8]} 6... g6 {[%clk
0:02:55.2]} 7. a3 {[%clk 0:02:57.5]} 7... Bg7 {[%clk 0:02:53.4]} 8. b4 {[%clk
0:02:52.1]} 8... O-O {[%clk 0:02:51.7]} 9. Nf3 {[%clk 0:02:26.8]} 9... Ne4
{[%clk 0:02:46.5]} 10. Bb2 {[%clk 0:02:20.7]} 10... Bg4 {[%clk 0:02:37.6]} 11.
Be2 {[%clk 0:01:46.1]} 11... Nc6 {[%clk 0:02:21.1]} 12. Na4 {[%clk 0:01:44.5]}
12... e5 {[%clk 0:01:46.6]} 13. Nxe5 {[%clk 0:01:15.4]} 13... Bxe2 {[%clk
0:01:34.1]} 14. Qxe2 {[%clk 0:01:16.3]} 14... Nxe5 {[%clk 0:01:27.2]} 15. dxe5
{[%clk 0:01:16.5]} 15... Re8 {[%clk 0:01:12.2]} 16. O-O {[%clk 0:01:06.6]} 16...
Qh4 {[%clk 0:00:44.9]} 17. f3 {[%clk 0:00:37.2]} 17... Nf6 {[%clk 0:00:35.1]}
18. Rad1 {[%clk 0:00:35.6]} 18... Rad8 {[%clk 0:00:32.5]} 19. g3 {[%clk
0:00:27]} 19... Qh5 {[%clk 0:00:27.5]} 20. Rfe1 {[%clk 0:00:26.8]} 20... h6
{[%clk 0:00:15.3]} 21. Nc3 {[%clk 0:00:22.5]} 21... d4 {[%clk 0:00:13.3]} 22.
Nb5 {[%clk 0:00:22.5]} 22... Nd5 {[%clk 0:00:11.8]} 23. Bxd4 {[%clk 0:00:18.8]}
23... Bxe5 {[%clk 0:00:10.2]} 24. Bxe5 {[%clk 0:00:18]} 1-0

[Event "*** Titled Tuesday Blitz"]
[Site "Chess.com"]
[Date "2021.04.20"]
[Round "2"]
[White "Raja3401"]
[Black "guillembaches"]
[Result "1-0"]
[WhiteElo "2752"]
[BlackElo "2508"]
[TimeControl "180+1"]
[EndTime "10:16:53 PDT"]
[Termination "Raja3401 won on time"]

1. e4 {[%clk 0:02:49.6]} 1... c5 {[%clk 0:02:59.6]} 2. Nf3 {[%clk 0:02:49.4]}
2... d6 {[%clk 0:03:00.2]} 3. d4 {[%clk 0:02:49.6]} 3... cxd4 {[%clk 0:03:01.1]}
4. Nxd4 {[%clk 0:02:50.4]} 4... Nf6 {[%clk 0:03:01]} 5. Nc3 {[%clk 0:02:51]}
5... Nc6 {[%clk 0:03:01.6]} 6. Bg5 {[%clk 0:02:45.6]} 6... e6 {[%clk 0:03:01.5]}
7. Qd3 {[%clk 0:02:46.2]} 7... h6 {[%clk 0:02:59.6]} 8. Bh4 {[%clk 0:02:41.3]}
8... Qb6 {[%clk 0:02:34.5]} 9. O-O-O {[%clk 0:02:40.2]} 9... Nxd4 {[%clk
0:02:32.9]} 10. Qxd4 {[%clk 0:02:41.1]} 10... Qxd4 {[%clk 0:02:32.6]} 11. Rxd4
{[%clk 0:02:42]} 11... a6 {[%clk 0:02:31.1]} 12. Na4 {[%clk 0:02:37.5]} 12...
Nd7 {[%clk 0:02:22.7]} 13. Be2 {[%clk 0:02:32.8]} 13... b5 {[%clk 0:02:16.2]}
14. Nc3 {[%clk 0:02:32.4]} 14... Bb7 {[%clk 0:02:16.2]} 15. Rhd1 {[%clk
0:02:30.4]} 15... Rc8 {[%clk 0:02:02.3]} 16. a4 {[%clk 0:02:28.8]} 16... bxa4
{[%clk 0:01:58.1]} 17. Rxa4 {[%clk 0:02:26.5]} 17... Nc5 {[%clk 0:01:56.5]} 18.
Rc4 {[%clk 0:02:22.5]} 18... Be7 {[%clk 0:01:10.9]} 19. Bg3 {[%clk 0:02:12.2]}
19... e5 {[%clk 0:01:11.1]} 20. Bg4 {[%clk 0:02:04]} 20... Rc6 {[%clk
0:00:51.3]} 21. Nd5 {[%clk 0:01:55.1]} 21... Bd8 {[%clk 0:00:49.2]} 22. f4
{[%clk 0:01:38.7]} 22... h5 {[%clk 0:00:44.1]} 23. Bf3 {[%clk 0:01:22.3]} 23...
h4 {[%clk 0:00:43.7]} 24. Bf2 {[%clk 0:01:20.9]} 24... exf4 {[%clk 0:00:34.3]}
25. e5 {[%clk 0:01:21.8]} 25... Ne6 {[%clk 0:00:15.3]} 26. Rxc6 {[%clk
0:01:18.5]} 26... Bxc6 {[%clk 0:00:16.2]} 27. exd6 {[%clk 0:01:19.2]} 27... Kd7
{[%clk 0:00:13.1]} 28. c4 {[%clk 0:01:11.7]} 28... h3 {[%clk 0:00:13.2]} 29. g3
{[%clk 0:00:56.9]} 29... fxg3 {[%clk 0:00:12.3]} 30. Bxg3 {[%clk 0:00:57.8]}
30... g5 {[%clk 0:00:09.5]} 31. Bg4 {[%clk 0:00:56.4]} 31... Rf8 {[%clk
0:00:08]} 32. Rf1 {[%clk 0:00:50.9]} 32... Ba5 {[%clk 0:00:05.3]} 33. b4 {[%clk
0:00:44]} 33... Bd8 {[%clk 0:00:04.9]} 34. Nf6+ {[%clk 0:00:44.3]} 34... Bxf6
{[%clk 0:00:04.7]} 35. Rxf6 {[%clk 0:00:45.2]} 35... Be4 {[%clk 0:00:04.1]} 36.
Bxe6+ {[%clk 0:00:45]} 1-0

[Event "*** Titled Tuesday Blitz"]
[Site "Chess.com"]
[Date "2021.04.20"]
[Round "2"]
[White "jacky72"]
[Black "GM_LOADING"]
[Result "0-1"]
[WhiteElo "2721"]
[BlackElo "2518"]
[TimeControl "180+1"]
[EndTime "10:16:54 PDT"]
[Termination "GM_LOADING won by checkmate"]

1. d4 {[%clk 0:03:00.9]} 1... Nf6 {[%clk 0:02:59.7]} 2. c4 {[%clk 0:03:00.9]}
2... e6 {[%clk 0:03:00.3]} 3. Nf3 {[%clk 0:03:01.3]} 3... Bb4+ {[%clk
0:03:00.7]} 4. Bd2 {[%clk 0:03:01.3]} 4... a5 {[%clk 0:03:01]} 5. Nc3 {[%clk
0:03:01.7]} 5... b6 {[%clk 0:02:59.3]} 6. e3 {[%clk 0:03:02.2]} 6... Bb7 {[%clk
0:02:59.5]} 7. Bd3 {[%clk 0:03:02.8]} 7... d6 {[%clk 0:02:57.7]} 8. O-O {[%clk
0:03:03.3]} 8... Nbd7 {[%clk 0:02:57.7]} 9. Qc2 {[%clk 0:03:03.8]} 9... O-O
{[%clk 0:02:55.5]} 10. a3 {[%clk 0:03:03.9]} 10... Bxc3 {[%clk 0:02:55.4]} 11.
Bxc3 {[%clk 0:03:04.8]} 11... a4 {[%clk 0:02:42.1]} 12. e4 {[%clk 0:03:03.9]}
12... h6 {[%clk 0:02:42.3]} 13. Rad1 {[%clk 0:03:02.7]} 13... Qe7 {[%clk
0:02:37.7]} 14. Rfe1 {[%clk 0:03:02.7]} 14... e5 {[%clk 0:02:36.5]} 15. dxe5
{[%clk 0:03:02.4]} 15... dxe5 {[%clk 0:02:33.7]} 16. Nh4 {[%clk 0:02:53]} 16...
g6 {[%clk 0:02:15.8]} 17. Qd2 {[%clk 0:02:47.5]} 17... Kh7 {[%clk 0:02:04.8]}
18. f4 {[%clk 0:02:44.8]} 18... Ng4 {[%clk 0:01:58.8]} 19. Nf3 {[%clk
0:02:38.2]} 19... Qc5+ {[%clk 0:01:33.3]} 20. Kf1 {[%clk 0:02:37.5]} 20... exf4
{[%clk 0:01:33.7]} 21. Bd4 {[%clk 0:02:32.3]} 21... Ne3+ {[%clk 0:01:22.3]} 22.
Bxe3 {[%clk 0:02:22.9]} 22... fxe3 {[%clk 0:01:22.1]} 23. Qxe3 {[%clk
0:02:23.8]} 23... Qxe3 {[%clk 0:01:22.4]} 24. Rxe3 {[%clk 0:02:24.7]} 24... Nc5
{[%clk 0:01:18]} 25. Bc2 {[%clk 0:02:25.2]} 25... Rad8 {[%clk 0:01:17.5]} 26.
Rde1 {[%clk 0:02:16]} 26... Ba6 {[%clk 0:01:12.8]} 27. Rc3 {[%clk 0:02:16.4]}
27... Rfe8 {[%clk 0:01:08.9]} 28. Kf2 {[%clk 0:02:16.8]} 28... Kg7 {[%clk
0:01:02.8]} 29. e5 {[%clk 0:02:17.2]} 29... Re7 {[%clk 0:00:54.8]} 30. h4 {[%clk
0:02:16]} 30... Bb7 {[%clk 0:00:46.8]} 31. Rce3 {[%clk 0:02:15.6]} 31... Bxf3
{[%clk 0:00:44.8]} 32. gxf3 {[%clk 0:02:14.8]} 32... Rd4 {[%clk 0:00:45.5]} 33.
Kg3 {[%clk 0:02:05.5]} 33... Rxc4 {[%clk 0:00:44]} 34. R1e2 {[%clk 0:02:06.2]}
34... Rd4 {[%clk 0:00:38.2]} 35. f4 {[%clk 0:02:05.5]} 35... Re8 {[%clk
0:00:22.5]} 36. h5 {[%clk 0:02:02.1]} 36... Ne6 {[%clk 0:00:16]} 37. Rf2 {[%clk
0:01:59.1]} 37... g5 {[%clk 0:00:11.8]} 38. f5 {[%clk 0:01:56.9]} 38... Nf4
{[%clk 0:00:12.1]} 39. f6+ {[%clk 0:01:57.4]} 39... Kf8 {[%clk 0:00:11.6]} 40.
Rh2 {[%clk 0:01:54.4]} 40... b5 {[%clk 0:00:09.4]} 41. Bf5 {[%clk 0:01:53.5]}
41... Rd5 {[%clk 0:00:06.1]} 42. Rc2 {[%clk 0:01:52.3]} 42... Nxh5+ {[%clk
0:00:05.2]} 43. Kh2 {[%clk 0:01:50.1]} 43... Nxf6 {[%clk 0:00:05.3]} 44. Rxc7
{[%clk 0:01:47.1]} 44... Rexe5 {[%clk 0:00:03.5]} 45. Rxe5 {[%clk 0:01:48]}
45... Rxe5 {[%clk 0:00:04.4]} 46. Bd3 {[%clk 0:01:48.8]} 46... Kg7 {[%clk
0:00:04.5]} 47. Rb7 {[%clk 0:01:47.5]} 47... Ng4+ {[%clk 0:00:04.9]} 48. Kg1
{[%clk 0:01:45.8]} 48... Re1+ {[%clk 0:00:03.9]} 49. Kg2 {[%clk 0:01:46.3]}
49... Ne5 {[%clk 0:00:04.4]} 50. Bxb5 {[%clk 0:01:46.2]} 50... h5 {[%clk
0:00:03.5]} 51. Bxa4 {[%clk 0:01:45.9]} 51... h4 {[%clk 0:00:03.9]} 52. Bd7
{[%clk 0:01:44.3]} 52... g4 {[%clk 0:00:04.2]} 53. Bf5 {[%clk 0:01:44]} 53...
h3+ {[%clk 0:00:04.4]} 54. Kg3 {[%clk 0:01:43.1]} 54... Rg1+ {[%clk 0:00:04.3]}
55. Kh2 {[%clk 0:01:42.3]} 55... Rg2+ {[%clk 0:00:04.8]} 56. Kh1 {[%clk
0:01:42.4]} 56... Nf3 {[%clk 0:00:05.4]} 57. Bxg4 {[%clk 0:01:40.3]} 57... Rg1#
{[%clk 0:00:05.1]} 0-1

[Event "*** Titled Tuesday Blitz"]
[Site "Chess.com"]
[Date "2021.04.20"]
[Round "2"]
[White "I_Enchev"]
[Black "Firouzja2003"]
[Result "0-1"]
[WhiteElo "2608"]
[BlackElo "3140"]
[TimeControl "180+1"]
[EndTime "10:16:58 PDT"]
[Termination "Firouzja2003 won by resignation"]

1. d4 {[%clk 0:03:00.9]} 1... b6 {[%clk 0:02:59.8]} 2. c4 {[%clk 0:02:59.4]}
2... Bb7 {[%clk 0:02:59.5]} 3. Nc3 {[%clk 0:02:59.6]} 3... e6 {[%clk 0:02:38.8]}
4. a3 {[%clk 0:02:58.6]} 4... f5 {[%clk 0:02:33.4]} 5. d5 {[%clk 0:02:55.8]}
5... Na6 {[%clk 0:02:25.8]} 6. g3 {[%clk 0:02:54.4]} 6... Nf6 {[%clk 0:02:25.1]}
7. Bg2 {[%clk 0:02:54.6]} 7... Bd6 {[%clk 0:02:20.1]} 8. Nh3 {[%clk 0:02:54.5]}
8... O-O {[%clk 0:02:17.9]} 9. O-O {[%clk 0:02:53.4]} 9... Qe7 {[%clk
0:02:14.9]} 10. b4 {[%clk 0:02:42.5]} 10... c6 {[%clk 0:02:07.7]} 11. Bb2 {[%clk
0:02:39.6]} 11... cxd5 {[%clk 0:01:57.9]} 12. cxd5 {[%clk 0:02:39.2]} 12... e5
{[%clk 0:01:58.1]} 13. Qd2 {[%clk 0:02:28.9]} 13... Nc7 {[%clk 0:01:55.6]} 14.
e4 {[%clk 0:02:20]} 14... f4 {[%clk 0:01:44.9]} 15. f3 {[%clk 0:02:13.7]} 15...
Nh5 {[%clk 0:01:39.7]} 16. g4 {[%clk 0:02:12.8]} 16... Nf6 {[%clk 0:01:38.7]}
17. Nf2 {[%clk 0:02:12]} 17... a5 {[%clk 0:01:35.7]} 18. b5 {[%clk 0:01:58.5]}
18... a4 {[%clk 0:01:27.5]} 19. Qc2 {[%clk 0:01:49.6]} 19... Rfc8 {[%clk
0:01:11.2]} 20. Nxa4 {[%clk 0:01:32.1]} 20... Ncxd5 {[%clk 0:00:45.1]} 21. Qb3
{[%clk 0:01:26.4]} 21... Rxa4 {[%clk 0:00:45.7]} 22. Qxa4 {[%clk 0:01:20.1]}
22... Ne3 {[%clk 0:00:46.1]} 23. Rfc1 {[%clk 0:01:16.6]} 23... Bc5 {[%clk
0:00:46.3]} 24. Qb3+ {[%clk 0:01:14.5]} 24... Kh8 {[%clk 0:00:44.3]} 25. a4
{[%clk 0:01:07]} 25... h5 {[%clk 0:00:41.7]} 26. g5 {[%clk 0:01:03.2]} 26...
Nxe4 {[%clk 0:00:33.5]} 27. fxe4 {[%clk 0:01:00.5]} 27... Qxg5 {[%clk
0:00:33.4]} 28. Qxe3 {[%clk 0:00:47.6]} 28... fxe3 {[%clk 0:00:20.7]} 29. Nh3
{[%clk 0:00:47.4]} 29... Qg4 {[%clk 0:00:19.1]} 30. Rc4 {[%clk 0:00:45.1]} 30...
d5 {[%clk 0:00:15]} 31. Rxc5 {[%clk 0:00:42.5]} 31... Rxc5 {[%clk 0:00:15.1]}
32. Bxe5 {[%clk 0:00:39.8]} 32... Rc2 {[%clk 0:00:14.2]} 33. Nf4 {[%clk
0:00:38.8]} 33... d4 {[%clk 0:00:12.1]} 34. h3 {[%clk 0:00:38]} 34... Qg5 {[%clk
0:00:12.2]} 35. Bd6 {[%clk 0:00:34.2]} 35... Bxe4 {[%clk 0:00:11.4]} 36. h4
{[%clk 0:00:34.5]} 36... Rxg2+ {[%clk 0:00:11.5]} 0-1

[Event "*** Titled Tuesday Blitz"]
[Site "Chess.com"]
[Date "2021.04.20"]
[Round "2"]
[White "aa175"]
[Black "Piccadilly123"]
[Result "0-1"]
[WhiteElo "2430"]
[BlackElo "2232"]
[TimeControl "180+1"]
[EndTime "10:16:59 PDT"]
[Termination "Piccadilly123 won by resignation"]

1. d4 {[%clk 0:03:00.9]} 1... Nf6 {[%clk 0:02:58.5]} 2. Nf3 {[%clk 0:02:56.9]}
2... d5 {[%clk 0:02:53.1]} 3. Bf4 {[%clk 0:02:41.7]} 3... e6 {[%clk 0:02:53]} 4.
e3 {[%clk 0:02:41]} 4... c5 {[%clk 0:02:53]} 5. Nbd2 {[%clk 0:02:40.8]} 5... Nc6
{[%clk 0:02:53.5]} 6. c3 {[%clk 0:02:41]} 6... Bd6 {[%clk 0:02:54]} 7. Bg3
{[%clk 0:02:41]} 7... O-O {[%clk 0:02:54]} 8. Bd3 {[%clk 0:02:41.5]} 8... Qe7
{[%clk 0:02:53.7]} 9. Ne5 {[%clk 0:02:41.5]} 9... h6 {[%clk 0:02:43.1]} 10. f4
{[%clk 0:02:39.9]} 10... Qc7 {[%clk 0:02:36.8]} 11. Ndf3 {[%clk 0:02:35.2]}
11... Ne7 {[%clk 0:02:33.7]} 12. Bf2 {[%clk 0:02:33]} 12... Ne4 {[%clk
0:02:25.2]} 13. Bh4 {[%clk 0:02:09]} 13... f6 {[%clk 0:01:59.6]} 14. Nc4 {[%clk
0:01:57]} 14... Nxc3 {[%clk 0:01:42.9]} 15. bxc3 {[%clk 0:01:49.6]} 15... dxc4
{[%clk 0:01:43.3]} 16. Be4 {[%clk 0:01:40.5]} 16... f5 {[%clk 0:01:20.6]} 17.
Bc2 {[%clk 0:01:35.6]} 17... Nd5 {[%clk 0:01:20.1]} 18. Qd2 {[%clk 0:01:21.8]}
18... Qa5 {[%clk 0:01:13.6]} 19. O-O {[%clk 0:01:12.9]} 19... Qxc3 {[%clk
0:01:10.7]} 20. Qxc3 {[%clk 0:01:06.7]} 20... Nxc3 {[%clk 0:01:11.6]} 21. Rfe1
{[%clk 0:01:02.4]} 21... b5 {[%clk 0:00:57.7]} 22. Ne5 {[%clk 0:00:51.7]} 22...
Bxe5 {[%clk 0:00:46.9]} 23. fxe5 {[%clk 0:00:46.7]} 23... Bb7 {[%clk 0:00:42.9]}
24. Be7 {[%clk 0:00:43.2]} 24... Rfc8 {[%clk 0:00:37.4]} 25. Bxc5 {[%clk
0:00:42.9]} 25... Be4 {[%clk 0:00:35.8]} 26. Bd1 {[%clk 0:00:33.8]} 26... a5
{[%clk 0:00:28.4]} 27. a3 {[%clk 0:00:28.4]} 27... Rcb8 {[%clk 0:00:16.9]} 28.
Bf3 {[%clk 0:00:20.4]} 28... Nd5 {[%clk 0:00:14.9]} 29. Kf2 {[%clk 0:00:17.9]}
29... b4 {[%clk 0:00:14.1]} 30. axb4 {[%clk 0:00:16.4]} 30... axb4 {[%clk
0:00:15]} 31. Rxa8 {[%clk 0:00:15.1]} 31... Rxa8 {[%clk 0:00:15.9]} 32. Rb1
{[%clk 0:00:13.6]} 32... Bxb1 {[%clk 0:00:15.6]} 0-1

[Event "*** Titled Tuesday Blitz"]
[Site "Chess.com"]
[Date "2021.04.20"]
[Round "2"]
[White "elisak43"]
[Black "QuintilianoR"]
[Result "1-0"]
[WhiteElo "2502"]
[BlackElo "2697"]
[TimeControl "180+1"]
[EndTime "10:17:02 PDT"]
[Termination "elisak43 won by resignation"]

1. Nf3 {[%clk 0:03:00.9]} 1... Nf6 {[%clk 0:02:59.1]} 2. g3 {[%clk 0:03:01]}
2... e6 {[%clk 0:02:59.4]} 3. Bg2 {[%clk 0:03:01.4]} 3... d5 {[%clk 0:03:00]} 4.
O-O {[%clk 0:03:01]} 4... Be7 {[%clk 0:03:00.5]} 5. d4 {[%clk 0:03:01.2]} 5...
O-O {[%clk 0:03:01]} 6. c4 {[%clk 0:03:01.8]} 6... dxc4 {[%clk 0:03:01.5]} 7.
Qc2 {[%clk 0:03:01.7]} 7... b6 {[%clk 0:03:01.5]} 8. Ne5 {[%clk 0:02:50.3]} 8...
Qxd4 {[%clk 0:02:58.7]} 9. Bxa8 {[%clk 0:02:06.8]} 9... Qxe5 {[%clk 0:02:57.1]}
10. Bf4 {[%clk 0:01:59.1]} 10... Qh5 {[%clk 0:02:56.4]} 11. Bg2 {[%clk
0:01:45.3]} 11... e5 {[%clk 0:02:18.9]} 12. Bc1 {[%clk 0:01:40.6]} 12... Bh3
{[%clk 0:02:17.1]} 13. f3 {[%clk 0:01:16.4]} 13... Nc6 {[%clk 0:01:45.8]} 14.
Qxc4 {[%clk 0:00:57.3]} 14... Nd4 {[%clk 0:01:39.5]} 15. Be3 {[%clk 0:00:38]}
15... Bc5 {[%clk 0:01:23.5]} 16. b4 {[%clk 0:00:30.6]} 16... Be6 {[%clk
0:01:03.6]} 17. Qd3 {[%clk 0:00:21.8]} 17... e4 {[%clk 0:01:02.5]} 18. Qd2
{[%clk 0:00:17.9]} 18... Bxb4 {[%clk 0:00:18.9]} 19. Qxd4 {[%clk 0:00:13.1]}
19... Bc5 {[%clk 0:00:18.9]} 20. Qd2 {[%clk 0:00:09.7]} 20... Qe5 {[%clk
0:00:09.6]} 21. Bxc5 {[%clk 0:00:07.2]} 21... Qxc5+ {[%clk 0:00:09.2]} 22. Kh1
{[%clk 0:00:06.2]} 22... e3 {[%clk 0:00:08.5]} 23. Qc3 {[%clk 0:00:06.3]} 23...
Qh5 {[%clk 0:00:08]} 24. Na3 {[%clk 0:00:06.2]} 1-0